bitfinex-derivatives/quotes_BTCF0:USTF0_20210705
["timestamp","ask_amount","ask_price","bid_price","bid_amount"]
[1625523652615,8.23520239,34002.0,33994.0,0.52153298]
[1625523652713,8.2003371,34002.0,33994.0,0.52153298]
[1625523652813,0.72120088,33995.0,33994.0,0.76210842]
[1625523652966,0.77820088,33995.0,33994.0,0.76210842]
[1625523653064,7.06475742,33995.0,33994.0,0.24057544]
[1625523653213,7.08106636,33995.0,33994.0,0.24057544]
[1625523653714,5.31193201,33995.0,33994.0,1.457856]
[1625523653815,5.31193201,33995.0,33994.0,1.575856]
[1625523654064,5.29562307,33995.0,33994.0,1.57934262]
[1625523654165,3.87941811,33995.0,33994.0,2.62265826]
[1625523654564,3.93641811,33995.0,33994.0,2.62265826]
[1625523654666,2.74709253,33995.0,33994.0,5.23065193]
[1625523655017,2.74709253,33995.0,33994.0,3.83972197]
[1625523655368,2.74709253,33995.0,33994.0,5.23063419]
[1625523656378,2.74709253,33995.0,33994.0,5.11263419]
[1625523656486,2.76339726,33995.0,33994.0,5.10914757]
[1625523656685,5.30991649,33995.0,33994.0,1.457856]
[1625523656766,5.30991649,33995.0,33994.0,1.21728056]
[1625523657068,5.30991649,33995.0,33994.0,0.52169167]
[1625523658121,5.30991649,33995.0,33993.0,1.2171637]
[1625523658471,4.74681039,33994.0,33993.0,0.52164525]
[1625523658570,4.80381039,33994.0,33993.0,0.52164525]
[1625523661785,4.80381039,33994.0,33992.0,0.5212725]
[1625523661885,4.80381039,33994.0,33992.0,0.5802725]
[1625523662036,4.80381039,33994.0,33992.0,0.6392725]
[1625523662237,3.39657436,33993.0,33992.0,0.81301137]
[1625523662337,3.45357436,33993.0,33992.0,0.81301137]
[1625523662639,3.45357436,33993.0,33992.0,0.75401137]
[1625523662740,3.45357436,33993.0,33992.0,1.2752708]
[1625523662838,3.45357436,33993.0,33992.0,1.3342708]
[1625523662940,3.39657436,33993.0,33992.0,1.3342708]
[1625523663491,2.20784125,33993.0,33992.0,3.53382174]
[1625523663990,2.20784125,33993.0,33992.0,3.59282174]
[1625523664442,1.1889029,33993.0,33992.0,3.59282174]
[1625523664843,1.1889029,33993.0,33992.0,4.07397262]
[1625523665395,0.50955407,33993.0,33992.0,5.46367259]
[1625523665494,0.50955407,33993.0,33992.0,5.55207259]
[1625523665595,0.46535407,33993.0,33992.0,5.46367259]
[1625523666245,0.52235407,33993.0,33992.0,5.46367259]
[1625523667100,0.52235407,33993.0,33992.0,4.07397262]
[1625523667198,1.20212701,33993.0,33992.0,4.07397262]
[1625523667299,1.20212701,33993.0,33992.0,4.37876262]
[1625523667300,1.14512701,33993.0,33992.0,4.37876262]
[1625523667397,1.09062701,33993.0,33992.0,4.37876262]
[1625523667498,1.07092701,33993.0,33992.0,4.37876262]
[1625523667599,0.39115407,33993.0,33992.0,4.46676262]
[1625523667748,0.39115407,33993.0,33992.0,4.37876262]
[1625523667951,1.16109617,33995.0,33992.0,5.76824283]
[1625523668253,1.21809617,33995.0,33994.0,2.95264813]
[1625523668353,1.16109617,33995.0,33994.0,3.01164813]
[1625523668454,1.21809617,33995.0,33994.0,3.07064813]
[1625523668852,1.16109617,33995.0,33994.0,3.07064813]
[1625523669253,0.48115088,33995.0,33994.0,4.4600645]
[1625523669653,0.48115088,33995.0,33994.0,4.46355083]
[1625523671860,0.68355694,33998.0,33994.0,4.46355083]
[1625523672064,0.68355694,33998.0,33994.0,4.47438296]
[1625523672160,0.68355694,33998.0,33994.0,4.46355083]
[1625523672361,0.68438252,34001.0,33997.0,4.34135218]
[1625523672461,0.68438252,34001.0,33997.0,4.40035218]
[1625523672661,0.68438252,34001.0,34000.0,2.95211171]
[1625523672762,0.68438252,34001.0,34000.0,3.20997171]
[1625523672863,0.68438252,34001.0,34000.0,3.56854715]
[1625523672963,0.68438252,34001.0,34000.0,3.80912259]
[1625523673162,0.68438252,34001.0,34000.0,3.81260841]
[1625523673465,0.68438252,34001.0,34000.0,5.20181307]
[1625523673865,0.68438252,34001.0,34000.0,3.81260841]
[1625523674214,0.68438252,34001.0,34000.0,5.20176048]
[1625523674365,0.68438252,34001.0,34000.0,9.05646048]
[1625523675567,0.92504183,34002.0,34000.0,9.05646048]
[1625523676066,0.92504183,34002.0,34001.0,2.95538159]
[1625523676167,0.92504183,34002.0,34001.0,3.01438159]
[1625523676266,0.92504183,34002.0,34001.0,3.07338159]
[1625523677320,0.92504183,34002.0,34001.0,3.06989575]
[1625523679629,0.68446639,34002.0,34001.0,3.06989575]
[1625523680988,0.68446639,34002.0,34001.0,3.55104663]
[1625523681435,1.70758387,34002.0,34001.0,3.55104663]
[1625523683692,0.68446639,34002.0,34001.0,3.55104663]
[1625523684293,0.74146639,34002.0,34001.0,3.55104663]
[1625523684443,1.76478982,34002.0,34001.0,3.55104663]
[1625523684895,1.76478982,34002.0,34001.0,2.33556015]
[1625523685096,1.70778982,34002.0,34001.0,2.33556015]
[1625523685195,0.68446639,34002.0,34001.0,3.55100506]
[1625523686504,0.68446639,34002.0,34001.0,3.55449038]
[1625523686599,0.68446639,34002.0,34001.0,3.56531726]
[1625523686700,0.34177461,34006.0,34001.0,6.51666522]
[1625523686800,0.34177461,34006.0,34001.0,6.50583834]
[1625523686950,0.34188844,34007.0,34005.0,4.34008057]
[1625523687054,0.34188844,34007.0,34005.0,4.58065601]
[1625523687151,0.34188844,34007.0,34005.0,4.63965601]
[1625523687249,0.34188844,34007.0,34005.0,4.69865601]
[1625523687351,0.34197663,34008.0,34006.0,4.34007437]
[1625523687449,0.34197663,34008.0,34006.0,4.39907437]
[1625523687550,0.34197663,34008.0,34006.0,4.46155958]
[1625523687852,0.34197663,34008.0,34007.0,4.33842204]
[1625523687950,0.34197663,34008.0,34007.0,4.69962204]
[1625523688150,0.341915,34009.0,34007.0,4.69962204]
[1625523688351,0.341915,34009.0,34007.0,4.70310713]
[1625523688501,0.341915,34009.0,34008.0,2.9501015]
[1625523688601,0.341915,34009.0,34008.0,3.01258659]
[1625523688702,0.341915,34009.0,34008.0,3.07158659]
[1625523688800,0.341915,34009.0,34008.0,4.45987164]
[1625523688901,0.341915,34009.0,34008.0,4.45638655]
[1625523689000,0.341915,34009.0,34008.0,4.69696199]
[1625523689402,0.341915,34009.0,34008.0,3.30867694]
[1625523689703,0.3418262,34010.0,34008.0,3.30867694]
[1625523689803,0.3418262,34010.0,34009.0,3.6395]
[1625523689904,0.3418262,34010.0,34009.0,3.7575]
[1625523690355,0.3418262,34010.0,34009.0,6.70648199]
[1625523691006,0.92405702,34011.0,34009.0,6.70648199]
[1625523691309,0.34192074,34010.0,34009.0,4.9717867]
[1625523691760,0.92405702,34011.0,34009.0,5.4920919]
[1625523692210,0.92405702,34011.0,34010.0,1.73418172]
[1625523692309,0.92405702,34011.0,34010.0,1.85218172]
[1625523692511,1.94979314,34011.0,34010.0,0.81167269]
[1625523693262,2.00679314,34011.0,34010.0,0.81167269]
[1625523694216,2.00679314,34011.0,34010.0,0.118]
[1625523695367,2.00679314,34011.0,34010.0,0.46477039]
[1625523695671,0.98105702,34011.0,34010.0,1.85138797]
[1625523697424,0.29757544,34011.0,34010.0,1.85138797]
[1625523697624,0.24057544,34011.0,34010.0,1.85138797]
[1625523697825,0.68526161,34012.0,34010.0,1.85138797]
[1625523697927,0.34277967,34012.0,34010.0,1.85138797]
[1625523698325,0.34277967,34012.0,34011.0,1.7330426]
[1625523698426,0.34277967,34012.0,34011.0,1.8510426]
[1625523699038,0.34277967,34012.0,34011.0,2.09161804]
[1625523700733,0.34277967,34012.0,34011.0,1.05179248]
[1625523703007,0.68495216,34014.0,34011.0,1.05179248]
[1625523703008,0.34232725,34013.0,34011.0,2.09094894]
[1625523703098,0.34232725,34013.0,34011.0,2.33152438]
[1625523703187,0.34232725,34013.0,34011.0,2.33500875]
[1625523703438,0.34232725,34013.0,34012.0,0.0034843]
[1625523703537,1.19771768,34017.0,34012.0,0.0034843]
[1625523703538,0.34286946,34017.0,34012.0,3.06535973]
[1625523703837,0.34272785,34018.0,34016.0,0.69240222]
[1625523703937,0.34272785,34018.0,34016.0,0.99103222]
[1625523704036,0.34272785,34018.0,34016.0,1.05003222]
[1625523704138,0.92585986,34019.0,34016.0,1.05003222]
[1625523704139,0.92585986,34019.0,34017.0,0.34620005]
[1625523704349,0.68528442,34019.0,34017.0,0.46420005]
[1625523704691,0.34275125,34019.0,34018.0,0.34614871]
[1625523704790,0.34275125,34019.0,34018.0,0.46414871]
[1625523704941,0.34275125,34019.0,34018.0,5.73044871]
[1625523705092,0.34275125,34019.0,34018.0,6.21159959]
[1625523705391,0.34275125,34019.0,34018.0,5.86545088]
[1625523705841,0.34272917,34020.0,34018.0,6.21144756]
[1625523706392,0.34290771,34023.0,34019.0,1.72994077]
[1625523706490,0.34290771,34023.0,34019.0,1.78894077]
[1625523706491,0.17790771,34023.0,34019.0,1.78894077]
[1625523706709,0.17790771,34023.0,34019.0,1.84794077]
[1625523706791,0.17790771,34023.0,34020.0,0.00348362]
[1625523706892,0.68580953,34026.0,34021.0,0.69185783]
[1625523706991,0.68580953,34026.0,34021.0,0.80985783]
[1625523707095,0.68580953,34026.0,34025.0,0.72172632]
[1625523707192,0.68580953,34026.0,34025.0,1.11011632]
[1625523707745,0.74252279,34027.0,34025.0,1.11011632]
[1625523708094,0.68537082,34026.0,34025.0,1.11011632]
[1625523708603,0.74237082,34026.0,34025.0,1.11011632]
[1625523709047,1.76986165,34026.0,34025.0,1.11011632]
[1625523709547,1.71286165,34026.0,34025.0,1.11011632]
[1625523709702,0.68537082,34026.0,34025.0,1.11011632]
[1625523710349,0.74237082,34026.0,34025.0,1.11011632]
[1625523710551,1.7694949,34026.0,34025.0,1.11011632]
[1625523711303,1.7124949,34026.0,34025.0,1.11011632]
[1625523711406,1.7694949,34026.0,34025.0,1.05111632]
[1625523711504,1.7694949,34026.0,34025.0,0.72172632]
[1625523711805,2.96642002,34026.0,34025.0,0.72172632]
[1625523712308,2.96642002,34026.0,34025.0,0.78072632]
[1625523713008,2.96642002,34026.0,34025.0,0.72172632]
[1625523713110,3.50076546,34026.0,34025.0,0.48115088]
[1625523713308,3.55976546,34026.0,34025.0,0.48115088]
[1625523713408,3.57600022,34026.0,34025.0,0.48115088]
[1625523713509,4.94320985,34026.0,34025.0,0.48115088]
[1625523714208,6.47869275,34026.0,34025.0,0.48115088]
[1625523714414,6.41969275,34026.0,34025.0,0.48115088]
[1625523714509,6.41969275,34026.0,34018.0,0.24057544]
[1625523714610,4.88420985,34026.0,34018.0,0.29957544]
[1625523714813,0.01623483,34025.0,34018.0,0.29957544]
[1625523714911,0.68225997,34020.0,34018.0,0.29957544]
[1625523715011,0.057,34019.0,34018.0,0.29957544]
[1625523715113,0.53815088,34019.0,34018.0,0.29957544]
[1625523715311,1.22036291,34019.0,34018.0,0.29957544]
[1625523715762,1.22036291,34019.0,34018.0,0.35857544]
[1625523716162,0.70891826,34019.0,34018.0,0.35857544]
[1625523720067,0.53815088,34019.0,34018.0,0.35857544]
[1625523720716,0.79253088,34019.0,34018.0,0.24057544]
[1625523721016,0.79253088,34019.0,34015.0,0.41333675]
[1625523721119,2.57662244,34019.0,34015.0,0.24057544]
[1625523721218,0.24057544,34016.0,34015.0,0.24057544]
[1625523721317,0.35657544,34016.0,34015.0,0.24057544]
[1625523721418,0.35657544,34016.0,34013.0,0.17283809]
[1625523721617,0.35657544,34016.0,34010.0,0.17285211]
[1625523721618,2.063162,34016.0,34010.0,0.17285211]
[1625523721717,0.01623718,34015.0,34010.0,0.17285211]
[1625523721818,0.07523718,34015.0,34010.0,0.23185211]
[1625523722122,0.48487163,34011.0,34010.0,0.059]
[1625523722219,0.54187163,34011.0,34008.0,0.17293263]
[1625523722321,0.65987163,34011.0,34008.0,0.17293263]
[1625523722421,0.17052736,34009.0,34007.0,0.17294648]
[1625523722521,0.057,34008.0,34007.0,0.17294648]
[1625523722625,0.116,34008.0,34007.0,0.17294648]
[1625523722822,0.116,34008.0,34004.0,1.03767886]
[1625523722823,0.116,34008.0,34004.0,0.1729732]
[1625523723273,0.72172632,34005.0,34004.0,0.1729732]
[1625523723374,0.83772632,34005.0,34004.0,0.1729732]
[1625523723474,0.83772632,34005.0,34003.0,0.17297843]
[1625523723776,1.00790162,34005.0,34003.0,0.17297843]
[1625523724075,1.5175946,34005.0,34001.0,0.17304051]
[1625523724476,0.17005724,34003.0,34001.0,0.17304051]
[1625523724578,0.057,34002.0,34001.0,0.17304051]
[1625523724676,0.38511,34002.0,34001.0,0.17304051]
[1625523725229,0.55550984,34002.0,34000.0,2.02644975]
[1625523725327,0.55550984,34002.0,34000.0,0.17304975]
[1625523725830,0.55550984,34002.0,33998.0,0.69219974]
[1625523726182,0.55550984,34002.0,33999.0,0.69239729]
[1625523726279,0.28639984,34002.0,33999.0,0.96990729]
[1625523726931,0.28639984,34002.0,33999.0,0.91090729]
[1625523727032,0.116,34002.0,34000.0,0.69239394]
[1625523727433,0.116,34002.0,33998.0,0.69242535]
[1625523728184,0.79660785,34002.0,33998.0,0.69242535]
[1625523728483,0.116,34002.0,33998.0,0.69242535]
[1625523728884,0.79656026,34002.0,33998.0,0.69242535]
[1625523729234,0.48115088,33999.0,33998.0,0.69242535]
[1625523729333,0.59715088,33999.0,33998.0,0.69242535]
[1625523730037,0.53815088,33999.0,33998.0,0.69242535]
[1625523730265,0.53815088,33999.0,33998.0,0.75142535]
[1625523730349,0.53815088,33999.0,33998.0,1.79047276]
[1625523730690,0.53815088,33999.0,33998.0,3.00267182]
[1625523730785,0.53815088,33999.0,33998.0,2.94367182]
[1625523730885,0.53815088,33999.0,33998.0,3.00267182]
[1625523731287,0.53815088,33999.0,33998.0,2.94367182]
[1625523731536,0.53815088,33999.0,33998.0,3.00267182]
[1625523731787,0.53815088,33999.0,33998.0,2.94367182]
[1625523732337,0.53815088,33999.0,33998.0,3.00267182]
[1625523732538,0.53815088,33999.0,33998.0,2.94367182]
[1625523732638,0.53815088,33999.0,33998.0,3.00267182]
[1625523732855,0.48115088,33999.0,33998.0,3.00267182]
[1625523732956,0.48115088,33999.0,33998.0,3.06167182]
[1625523733193,0.48115088,33999.0,33998.0,4.4470948]
[1625523734094,0.48115088,33999.0,33998.0,6.00563484]
[1625523734446,0.48115088,33999.0,33998.0,6.21918484]
[1625523735600,0.48115088,33999.0,33998.0,6.2299854]
[1625523736052,0.24057544,33999.0,33998.0,6.2299854]
[1625523737054,0.24057544,33999.0,33998.0,6.23347056]
[1625523738156,0.24057544,34005.0,33998.0,6.23347056]
[1625523738458,0.24057544,34005.0,33999.0,0.01079906]
[1625523738557,0.24057544,34005.0,33999.0,0.12879906]
[1625523738658,0.24057544,34011.0,34000.0,0.01080011]
[1625523738759,0.24057544,34011.0,34000.0,0.06980011]
[1625523738960,0.24057544,34011.0,34000.0,0.07328493]
[1625523739060,0.24057544,34011.0,34001.0,0.01079948]
[1625523739161,0.24057544,34011.0,34010.0,1.7319267]
[1625523739261,0.24057544,34011.0,34010.0,2.58447758]
[1625523740213,0.24057544,34011.0,34010.0,2.64347758]
[1625523740523,0.24057544,34011.0,34010.0,3.85581532]
[1625523740865,0.24057544,34011.0,34010.0,3.85929964]
[1625523741065,0.24057544,34011.0,34010.0,5.24480813]
[1625523741515,0.24057544,34011.0,34010.0,6.80345468]
[1625523742014,0.23937544,34011.0,34010.0,6.80345468]
[1625523742921,0.24057544,34016.0,34010.0,6.80345468]
[1625523743018,0.24057544,34016.0,34010.0,5.24480813]
[1625523743218,0.24057544,34016.0,34011.0,0.0034845]
[1625523743318,0.24057544,34016.0,34015.0,0.24057544]
[1625523743420,0.24057544,34016.0,34015.0,1.97269739]
[1625523743518,0.24057544,34016.0,34015.0,2.03169739]
[1625523743719,0.24057544,34016.0,34015.0,3.2442665]
[1625523745974,0.24057544,34016.0,34015.0,4.63011823]
[1625523746678,0.24057544,34016.0,34015.0,3.2442665]
[1625523747328,0.24057544,34016.0,34015.0,4.63004097]
[1625523747629,0.24057544,34016.0,34015.0,3.2442665]
[1625523749333,0.92646468,34020.0,34015.0,3.2442665]
[1625523749537,0.24057544,34020.0,34019.0,1.73200744]
[1625523749635,0.24057544,34020.0,34019.0,1.95389744]
[1625523749735,0.24057544,34020.0,34019.0,2.01289744]
[1625523751338,0.24057544,34020.0,34019.0,2.25347288]
[1625523751437,0.24057544,34020.0,34019.0,3.46557895]
[1625523751939,0.29957544,34020.0,34019.0,3.46557895]
[1625523753091,0.24057544,34020.0,34019.0,3.46557895]
[1625523753693,0.24057544,34020.0,34019.0,3.52457895]
[1625523753792,0.24057544,34023.0,34020.0,0.059]
[1625523753894,0.24057544,34023.0,34020.0,0.118]
[1625523754094,0.68610679,34027.0,34020.0,0.059]
[1625523754192,0.68610679,34027.0,34020.0,0.118]
[1625523754295,0.68644337,34029.0,34022.0,2.94238433]
[1625523754392,0.68644337,34029.0,34028.0,4.2215]
[1625523754493,0.68644337,34029.0,34028.0,4.57276]
[1625523754793,0.68637952,34030.0,34028.0,4.57276]
[1625523755245,0.68631976,34031.0,34028.0,4.57276]
[1625523755398,0.68631976,34031.0,34030.0,0.24057544]
[1625523755498,0.68631976,34031.0,34030.0,0.29957544]
[1625523755747,1.26996931,34032.0,34030.0,0.29957544]
[1625523755748,0.92688259,34032.0,34030.0,0.29957544]
[1625523755946,0.92688259,34032.0,34030.0,0.24057544]
[1625523756051,0.68610689,34031.0,34030.0,0.24057544]
[1625523756299,0.68610689,34031.0,34030.0,0.29957544]
[1625523756703,0.92516122,34032.0,34030.0,0.29957544]
[1625523757001,0.24057544,34032.0,34030.0,0.29957544]
[1625523758519,0.24057544,34032.0,34031.0,0.51869869]
[1625523758606,0.24057544,34032.0,34031.0,0.57769869]
[1625523758806,0.24057544,34032.0,34031.0,0.059]
[1625523761106,0.29957544,34032.0,34030.0,0.75906091]
[1625523761206,0.24057544,34032.0,34030.0,0.75906091]
[1625523761557,0.24057544,34032.0,34030.0,0.24057544]
[1625523762663,0.62493544,34032.0,34030.0,0.24057544]
[1625523762762,0.057,34031.0,34030.0,0.24057544]
[1625523762861,0.116,34031.0,34030.0,0.24057544]
[1625523763665,0.62843054,34031.0,34030.0,0.24057544]
[1625523764465,0.116,34031.0,34030.0,0.24057544]
[1625523767723,0.175,34031.0,34030.0,0.24057544]
[1625523768124,0.116,34031.0,34030.0,0.24057544]
[1625523770079,0.175,34031.0,34030.0,0.24057544]
[1625523770180,0.116,34031.0,34030.0,0.24057544]
[1625523770280,0.19122473,34031.0,34030.0,0.24057544]
[1625523770681,1.39173133,34031.0,34030.0,0.24057544]
[1625523770780,1.60503133,34031.0,34030.0,0.24057544]
[1625523771084,2.63234092,34031.0,34030.0,0.24057544]
[1625523771331,2.57334092,34031.0,34030.0,0.24057544]
[1625523771432,2.63234092,34031.0,34030.0,0.24057544]
[1625523771631,2.57334092,34031.0,34030.0,0.24057544]
[1625523771884,1.54603133,34031.0,34030.0,0.24057544]
[1625523771983,1.33273133,34031.0,34030.0,0.24057544]
[1625523772084,1.39173133,34031.0,34030.0,0.24057544]
[1625523772836,1.33273133,34031.0,34030.0,0.24057544]
[1625523772987,1.39173133,34031.0,34030.0,0.24057544]
[1625523773087,1.33273133,34031.0,34030.0,0.24057544]
[1625523773188,2.41921911,34031.0,34030.0,0.24057544]
[1625523773539,2.36021911,34031.0,34030.0,0.24057544]
[1625523774196,2.30121911,34031.0,34030.0,0.55823544]
[1625523774297,1.27373133,34031.0,34030.0,0.55823544]
[1625523774496,1.33273133,34031.0,34030.0,0.55823544]
[1625523774705,0.13222473,34031.0,34030.0,0.55823544]
[1625523775007,0.13222473,34031.0,34030.0,0.61723544]
[1625523775092,0.21807299,34031.0,34030.0,0.61723544]
[1625523775444,0.21807299,34031.0,34030.0,0.55823544]
[1625523775553,0.15907299,34031.0,34030.0,0.55823544]
[1625523775643,0.10207299,34031.0,34030.0,0.61723544]
[1625523775745,0.01347299,34031.0,34030.0,0.61723544]
[1625523775945,0.01347299,34031.0,34030.0,0.62071844]
[1625523776043,0.01347299,34031.0,34030.0,0.67971844]
[1625523776147,1.19981939,34033.0,34030.0,2.23215025]
[1625523776244,1.25939093,34040.0,34030.0,2.86311994]
[1625523776444,0.01616843,34039.0,34031.0,0.00348284]
[1625523776544,0.01616843,34039.0,34031.0,0.06248284]
[1625523776644,0.01616843,34039.0,34031.0,0.12148284]
[1625523776745,0.01616843,34039.0,34031.0,0.63895305]
[1625523776845,0.01616843,34039.0,34038.0,4.8968]
[1625523777045,0.01616843,34039.0,34038.0,5.18172]
[1625523777498,0.01616843,34039.0,34038.0,5.66287088]
[1625523778096,0.01616843,34039.0,34038.0,5.72187088]
[1625523778198,0.42847814,34041.0,34038.0,5.78087088]
[1625523778298,0.42847814,34041.0,34038.0,5.78435324]
[1625523778398,1.20228876,34042.0,34038.0,6.16855324]
[1625523778499,0.51526639,34042.0,34038.0,6.16855324]
[1625523778599,0.51526639,34042.0,34039.0,0.00348212]
[1625523778701,0.51526639,34042.0,34039.0,0.06248212]
[1625523778799,0.51126639,34042.0,34039.0,0.12148212]
[1625523779099,0.057,34050.0,34040.0,0.69257511]
[1625523779299,0.057,34050.0,34040.0,0.81057511]
[1625523779399,0.68804337,34052.0,34040.0,0.81057511]
[1625523779499,0.74704337,34052.0,34040.0,0.81057511]
[1625523779599,0.74704337,34052.0,34051.0,0.24057544]
[1625523780002,0.80404337,34052.0,34051.0,0.24057544]
[1625523780103,0.82020226,34052.0,34051.0,0.24057544]
[1625523780403,3.11423429,34052.0,34051.0,0.24057544]
[1625523780503,3.05523429,34052.0,34051.0,0.24057544]
[1625523780953,3.05523429,34052.0,34038.0,5.76215088]
[1625523781052,3.36776429,34052.0,34038.0,5.76215088]
[1625523781502,0.01616099,34051.0,34038.0,5.76215088]
[1625523781608,0.24057544,34039.0,34038.0,5.82115088]
[1625523781707,0.24057544,34039.0,34038.0,5.76215088]
[1625523781819,0.24057544,34039.0,34038.0,5.82115088]
[1625523782004,0.24057544,34039.0,34038.0,5.76215088]
[1625523782110,0.24057544,34039.0,34038.0,5.76563324]
[1625523782671,0.24057544,34039.0,34038.0,5.82463324]
[1625523783861,0.24057544,34039.0,34038.0,5.76563324]
[1625523783956,0.29757544,34039.0,34038.0,5.76563324]
[1625523784058,0.62157544,34039.0,34038.0,5.76563324]
[1625523784232,0.62157544,34039.0,34038.0,5.76215088]
[1625523785408,0.62157544,34039.0,34038.0,5.82115088]
[1625523785760,0.62157544,34039.0,34038.0,5.76215088]
[1625523786413,0.68057544,34039.0,34038.0,5.76215088]
[1625523786611,0.62157544,34039.0,34038.0,5.76215088]
[1625523787414,0.29757544,34039.0,34038.0,5.76215088]
[1625523787512,0.29757544,34039.0,34038.0,5.82115088]
[1625523787613,0.24057544,34039.0,34038.0,5.82115088]
[1625523787814,0.29757544,34039.0,34038.0,5.82115088]
[1625523787914,0.24057544,34039.0,34038.0,5.76215088]
[1625523788214,0.24057544,34039.0,34038.0,5.82115088]
[1625523789065,0.24057544,34039.0,34038.0,5.76215088]
[1625523789265,0.29757544,34039.0,34038.0,5.76215088]
[1625523794023,0.29757544,34039.0,34038.0,6.06110088]
[1625523794834,0.35657544,34039.0,34038.0,0.53952544]
[1625523795028,0.41557544,34039.0,34038.0,0.24057544]
[1625523795227,0.41557544,34039.0,34034.0,0.69085692]
[1625523795443,0.68543252,34037.0,34034.0,0.69085692]
[1625523795529,0.057,34036.0,34030.0,1.61767021]
[1625523795627,0.116,34036.0,34030.0,1.61767021]
[1625523795729,0.175,34036.0,34030.0,1.61767021]
[1625523795930,0.97171672,34034.0,34030.0,0.9267]
[1625523796030,0.057,34033.0,34030.0,0.9267]
[1625523796131,0.72172632,34031.0,34030.0,0.9267]
[1625523796232,0.89672632,34031.0,34030.0,0.9267]
[1625523796333,0.83772632,34031.0,34030.0,0.9267]
[1625523796433,0.89672632,34031.0,34030.0,0.9267]
[1625523796833,0.83772632,34031.0,34030.0,0.9267]
[1625523797886,0.77872632,34031.0,34030.0,0.9267]
[1625523798186,0.72172632,34031.0,34030.0,0.9857]
[1625523798789,0.72172632,34031.0,34030.0,0.98918262]
[1625523798989,0.72172632,34031.0,34030.0,5.31271965]
[1625523799591,0.77872632,34031.0,34030.0,5.31271965]
[1625523799792,0.83772632,34031.0,34030.0,5.31271965]
[1625523800094,0.83772632,34031.0,34030.0,5.25371965]
[1625523800294,0.83772632,34031.0,34030.0,5.31271965]
[1625523800409,0.83772632,34031.0,34030.0,5.25371965]
[1625523800496,0.83772632,34031.0,34030.0,5.31271965]
[1625523800597,0.83772632,34031.0,34030.0,5.25371965]
[1625523800698,0.78072632,34031.0,34030.0,5.25371965]
[1625523800804,0.78072632,34031.0,34030.0,5.31271965]
[1625523800898,0.78072632,34031.0,34030.0,5.25371965]
[1625523801049,0.78072632,34031.0,34030.0,5.31271965]
[1625523801148,0.78072632,34031.0,34030.0,5.25371965]
[1625523801850,0.83772632,34031.0,34030.0,5.25371965]
[1625523802251,0.83772632,34031.0,34030.0,3.8701878]
[1625523802599,0.78072632,34031.0,34030.0,3.8701878]
[1625523802699,0.78072632,34031.0,34030.0,5.25490679]
[1625523802899,0.72172632,34031.0,34030.0,5.31390679]
[1625523803509,0.72172632,34031.0,34030.0,5.59248679]
[1625523803954,0.72172632,34031.0,34030.0,7.15010515]
[1625523804353,0.72172632,34031.0,34030.0,7.16088548]
[1625523804454,0.72172632,34031.0,34030.0,7.21988548]
[1625523806054,0.72172632,34031.0,34030.0,7.16088548]
[1625523811119,0.72172632,34031.0,34030.0,7.21988548]
[1625523811420,0.72172632,34031.0,34030.0,7.16088548]
[1625523814174,0.48115088,34031.0,34030.0,7.16088548]
[1625523814275,0.24057544,34031.0,34030.0,7.16088548]
[1625523814376,0.24057544,34039.0,34038.0,4.2774]
[1625523814577,0.29957544,34039.0,34038.0,4.2774]
[1625523814726,0.29957544,34039.0,34038.0,8.60929368]
[1625523814930,0.29957544,34039.0,34038.0,8.61277562]
[1625523815329,0.29957544,34039.0,34038.0,8.81935562]
[1625523816179,0.29957544,34039.0,34038.0,9.05993106]
[1625523816280,0.24057544,34039.0,34038.0,9.05993106]
[1625523816530,0.29957544,34039.0,34038.0,9.05993106]
[1625523817582,0.24057544,34039.0,34038.0,9.05993106]
[1625523818083,0.29957544,34039.0,34038.0,9.05993106]
[1625523821193,0.24057544,34039.0,34038.0,9.05993106]
[1625523823393,0.29957544,34039.0,34038.0,9.05993106]
[1625523827001,0.24057544,34039.0,34038.0,9.05993106]
[1625523831212,0.24057544,34039.0,34038.0,10.62008712]
[1625523834520,0.24057544,34039.0,34038.0,10.63089762]
[1625523837441,0.60775544,34039.0,34038.0,6.14691762]
[1625523837641,0.60775544,34039.0,34038.0,5.89553168]
[1625523837734,0.72575544,34039.0,34038.0,5.89553168]
[1625523837857,0.66675544,34039.0,34038.0,5.89553168]
[1625523837932,0.72575544,34039.0,34038.0,5.89553168]
[1625523838234,0.74185734,34039.0,34038.0,5.89553168]
[1625523838336,2.71263772,34039.0,34038.0,4.33537562]
[1625523838437,2.65363772,34039.0,34038.0,4.33537562]
[1625523838584,2.71263772,34039.0,34038.0,4.33537562]
[1625523842043,2.65363772,34039.0,34038.0,4.33537562]
[1625523842244,2.57853582,34039.0,34038.0,4.33537562]
[1625523842846,2.26835582,34039.0,34038.0,4.33537562]
[1625523843146,0.88423147,34039.0,34038.0,5.89744394]
[1625523844103,0.53815088,34039.0,34038.0,5.89744394]
[1625523844851,0.88360004,34039.0,34038.0,5.89744394]
[1625523845302,0.53815088,34039.0,34038.0,5.89744394]
[1625523845704,0.53295088,34039.0,34038.0,5.89744394]
[1625523848512,0.87809874,34039.0,34038.0,4.33537562]
[1625523849762,0.53295088,34039.0,34038.0,4.33537562]
[1625523850412,1.22298128,34039.0,34038.0,4.33537562]
[1625523853972,2.25817704,34039.0,34038.0,4.33537562]
[1625523855277,1.22298128,34039.0,34038.0,4.33537562]
[1625523856834,2.25912096,34039.0,34038.0,4.33537562]
[1625523861096,2.25912096,34039.0,34038.0,5.89962986]
[1625523861195,2.20212096,34039.0,34038.0,5.89962986]
[1625523861294,1.68937008,34039.0,34038.0,6.02845619]
[1625523861395,1.61217008,34039.0,34038.0,6.02845619]
[1625523861495,1.45017008,34039.0,34038.0,6.02845619]
[1625523861596,1.38767008,34039.0,34038.0,6.02845619]
[1625523861700,1.36777008,34039.0,34038.0,6.02845619]
[1625523861798,1.27773426,34041.0,34038.0,6.03715892]
[1625523861899,0.34583483,34039.0,34038.0,6.03715892]
[1625523862097,0.25783483,34039.0,34038.0,6.03715892]
[1625523862501,0.24057544,34046.0,34038.0,8.01536973]
[1625523862599,0.24057544,34046.0,34038.0,8.006667]
[1625523862700,0.24057544,34046.0,34039.0,0.01082481]
[1625523862800,0.24057544,34046.0,34040.0,0.0891]
[1625523863000,0.24057544,34046.0,34045.0,5.21485205]
[1625523863100,0.24057544,34046.0,34045.0,5.27385205]
[1625523863202,0.24057544,34046.0,34045.0,5.54196205]
[1625523863300,0.24057544,34046.0,34045.0,5.5527775]
[1625523863401,0.24057544,34046.0,34045.0,5.55625827]
[1625523863603,0.16847544,34046.0,34045.0,5.55625827]
[1625523863702,0.16847544,34046.0,34045.0,5.61525827]
[1625523863902,0.15867544,34046.0,34045.0,5.61525827]
[1625523864003,0.24057544,34049.0,34045.0,5.61525827]
[1625523864153,0.24057544,34049.0,34046.0,0.01081365]
[1625523864255,0.04957544,34049.0,34046.0,0.06981365]
[1625523864352,1.03966193,34052.0,34047.0,0.01081323]
[1625523864453,1.03966193,34052.0,34047.0,0.13229375]
[1625523864554,1.03966193,34052.0,34051.0,0.48115088]